fUST/lending_fUST_20240110
["ID","MTS","AMOUNT","RATE_DAILY","PERIOD"]
[311037649,1704883839101,-300.0,0.00025646,2]
[311037650,1704883839112,-1465.26535398,0.00025646,2]
[311037651,1704883839122,-2079.63666476,0.00025646,2]
[311037652,1704883839132,-1821.85168105,0.00025646,2]
[311037653,1704883839142,-154.92253873,0.00025646,2]
[311037654,1704883839152,-200.0,0.00025646,2]
[311037655,1704883839162,-525.91402641,0.00026,2]
[311037656,1704883839172,-2126.09470477,0.00026,2]
[311037657,1704883839182,-153.0,0.00026041,2]
[311037658,1704883839192,-153.0,0.00026241,2]
[311037659,1704883839202,-153.0,0.00026341,2]
[311037660,1704883839212,-153.0,0.00026441,2]
[311037661,1704883839223,-620.00928979,0.0002673,2]
[311037662,1704883839233,-733.25771754,0.00027,2]
[311037663,1704883839244,-154.92253873,0.00027,2]
[311037664,1704883839255,-1500.0,0.00027,2]
[311037665,1704883839266,-44492.93664032,0.00027,2]
[311037666,1704883839277,-191.1786264,0.00027083,2]
[311037667,1704883839286,-1391.6033628,0.00027083,2]
[311037668,1704883839296,-454.89181024,0.00027181,2]
[311037669,1704883839305,-332.22979216,0.00027181,2]
[311037670,1704883839314,-265.80201731,0.00027181,2]
[311037671,1704883839324,-961.9416792,0.00027182,2]
[311037672,1704883839335,-270.62247521,0.00027182,2]
[311037673,1704883839344,-506.769534,0.00027182,2]
[311037674,1704883839354,-500.0,0.00027182,2]
[311037675,1704883839364,-208.70435716,0.00027182,2]
[311037676,1704883839374,-500.0,0.00027182,2]
[311037677,1704883839383,-500.0,0.00027182,2]
[311037678,1704883839393,-500.0,0.00027182,2]
[311037679,1704883839403,-436.36166105,0.00027182,2]
[311037680,1704883839413,-500.0,0.00027182,2]
[311037681,1704883839423,-500.0,0.00027182,2]
[311037682,1704883839433,-500.0,0.00027182,2]
[311037683,1704883839443,-500.0,0.00027182,2]
[311037684,1704883839453,-500.0,0.00027182,2]
[311037685,1704883839464,-500.0,0.00027182,2]
[311037686,1704883839473,-500.0,0.00027182,2]
[311037687,1704883839483,-604.21694515,0.00027182,2]
[311037688,1704883839496,-500.0,0.00027182,2]
[311037689,1704883839506,-500.0,0.00027182,2]
[311037690,1704883839515,-500.0,0.00027182,2]
[311037691,1704883839525,-500.0,0.00027182,2]
[311037692,1704883839535,-500.0,0.00027182,2]
[311037693,1704883839544,-500.0,0.00027182,2]
[311037694,1704883839554,-500.0,0.00027182,2]
[311037695,1704883839565,-190.81914858,0.00027182,2]
[311037696,1704883839575,-500.0,0.00027182,2]
[311037697,1704883839585,-500.0,0.00027182,2]
[311037698,1704883839595,-24814.39323128,0.00027183,2]
[311037699,1704883839604,-5000.0,0.00027183,2]
[311037700,1704883839615,-3313.2630203,0.00027183,2]
[311037701,1704883839625,-1498.49659858,0.00027183,7]
[311037702,1704883839635,-5000.0,0.00027183,2]
[311037703,1704883839646,-21974.82122429,0.00027183,2]
[311037704,1704883839655,-3138.60423925,0.00027183,2]
[311037705,1704883839665,-5000.0,0.00027183,2]
[311037706,1704883839675,-2776.34911595,0.00027183,2]
[311037707,1704883839685,-191.1786264,0.00027205,2]
[311037708,1704883839694,-32113.65059237,0.00027297,2]
[311037709,1704883839703,-2000.0,0.000273,2]
[311037710,1704883839713,-2000.0,0.0002731,2]
[311037711,1704883839722,-2000.0,0.0002732,2]
[311037712,1704883839734,-191.1786264,0.00027327,2]
[311037713,1704883839747,-245.72874804,0.00027328,2]
[311037714,1704883839758,-3735.0637491,0.00027328,2]
[311037715,1704883839775,-2268.02438666,0.00027329,2]
[311037716,1704883839789,-2000.0,0.0002733,2]
[311037717,1704883839803,-2000.0,0.0002734,2]
[311037718,1704883839816,-2000.0,0.0002735,2]
[311037719,1704883839827,-2000.0,0.0002736,2]
[311037720,1704883839838,-180.68599404,0.00027368,2]
[311037721,1704883839850,-508.41512045,0.00027368,2]
[311037722,1704883839863,-555.30533459,0.00027369,2]
[311037723,1704883839875,-155.1084241,0.00027369,2]
[311037724,1704883839889,-2000.0,0.0002737,2]
[311037725,1704883839902,-590.11543549,0.00027378,2]
[311037726,1704883839914,-2000.0,0.0002738,2]
[311037727,1704883839924,-1586.54763631,0.00027385,2]
[311037728,1704883839934,-2000.0,0.0002739,2]
[311037729,1704883839946,-214.97684073,0.00027392,2]
[311037730,1704883839958,-155.10911915,0.00027392,2]
[311037731,1704883839968,-156.27907449,0.00027392,2]
[311037732,1704883839980,-3612.07378676,0.00027392,2]
[311037733,1704883839992,-294.29289612,0.00027392,2]
[311037734,1704883840003,-155.62270884,0.00027392,2]
[311037735,1704883840017,-180.28265137,0.00027393,2]
[311037736,1704883840029,-4629.40276157,0.00027393,2]
[311037737,1704883840039,-185.20166311,0.00027394,2]
[311037738,1704883840049,-3687.23522318,0.00027394,2]
[311037739,1704883840063,-643.32630078,0.00027394,2]
[311037740,1704883840076,-164.73645358,0.00027394,2]
[311037741,1704883840087,-54201.56100322,0.00027394,2]
[311037742,1704883840101,-269.99256518,0.00027395,2]
[311037743,1704883840114,-1274.8601189,0.00027395,2]
[311037744,1704883840125,-235.09788155,0.00027395,2]
[311037745,1704883840137,-314.71739697,0.00027395,2]
[311037746,1704883840149,-366.07525278,0.00027395,2]
[311037747,1704883840160,-272.90618919,0.00027395,2]
[311037748,1704883840173,-363.52121373,0.00027395,2]
[311037749,1704883840192,-155.06275693,0.00027395,2]
[311037750,1704883840213,-155.01068281,0.00027395,2]
[311037751,1704883840229,-155.39178535,0.00027395,2]
[311037752,1704883840246,-155.17839186,0.00027395,2]
[311037753,1704883840257,-902.57007428,0.00027395,2]
[311037754,1704883840267,-190.48061924,0.00027395,2]
[311037755,1704883840278,-191.38797694,0.00027395,2]
[311037756,1704883840290,-1354.76161098,0.00027395,2]
[311037757,1704883840304,-155.55366155,0.00027395,2]
[311037758,1704883840317,-1711.85701986,0.00027395,2]
[311037759,1704883840330,-155.71004798,0.00027395,2]
[311037760,1704883840345,-289.43551104,0.00027395,2]
[311037761,1704883840359,-155.30088633,0.00027395,2]
[311037762,1704883840372,-155.12313287,0.00027395,2]
[311037763,1704883840383,-600.68660678,0.00027396,4]
[311037764,1704883840394,-500.0,0.00027396,4]
[311037765,1704883840405,-500.0,0.00027396,4]
[311037766,1704883840417,-500.0,0.00027396,4]
[311037767,1704883840431,-500.0,0.00027396,4]
[311037768,1704883840443,-500.0,0.00027396,4]
[311037769,1704883840457,-500.0,0.00027396,4]
[311037770,1704883840469,-427.83784584,0.00027396,4]
[311037771,1704883840482,-188.78798896,0.00027396,4]
[311037773,1704883840498,-151.0,0.00027397,2]
[311037775,1704883840511,-151.0,0.00027397,2]
[311037776,1704883840523,-299.0,0.00027397,2]
[311037777,1704883840535,-151.0,0.00027397,2]
[311037778,1704883840548,-151.0,0.00027397,2]
[311037779,1704883840560,-151.0,0.00027397,2]
[311037780,1704883840572,-369.639832,0.00027397,2]
[311037781,1704883840584,-369.639832,0.00027397,2]
[311037782,1704883840596,-369.639832,0.00027397,2]
[311037783,1704883840607,-369.639832,0.00027397,2]
[311037784,1704883840619,-501.02043593,0.00027397,2]
[311037785,1704883840631,-500.0,0.00027397,2]
[311037786,1704883840644,-500.0,0.00027397,2]
[311037787,1704883840655,-500.0,0.00027397,2]
[311037788,1704883840667,-500.0,0.00027397,2]
[311037789,1704883840680,-500.0,0.00027397,2]
[311037790,1704883840691,-500.0,0.00027397,2]
[311037791,1704883840702,-500.0,0.00027397,2]
[311037792,1704883840713,-500.0,0.00027397,2]
[311037794,1704883840724,-500.0,0.00027397,2]
[311037795,1704883840738,-503.49423838,0.00027397,2]
[311037796,1704883840750,-502.83552207,0.00027397,2]
[311037797,1704883840761,-519.03132997,0.00027397,2]
[311037798,1704883840772,-500.0,0.00027397,2]
[311037800,1704883840784,-500.0,0.00027397,2]
[311037801,1704883840795,-500.0,0.00027397,2]
[311037802,1704883840805,-503.05323719,0.00027397,2]
[311037803,1704883840816,-501.60375425,0.00027397,2]
[311037804,1704883840828,-1414.77,0.00027397,2]
[311037807,1704883840840,-231.27172654,0.00027397,2]
[311037809,1704883840850,-402.09100132,0.00027397,2]
[311037811,1704883840861,-500.61378219,0.00027397,2]
[311037813,1704883840872,-501.34716716,0.00027397,2]
[311037815,1704883840883,-500.0,0.00027397,2]
[311037817,1704883840894,-500.0,0.00027397,2]
[311037819,1704883840906,-500.0,0.00027397,2]
[311037821,1704883840917,-501.46967249,0.00027397,2]
[311037822,1704883840927,-500.0,0.00027397,2]
[311037823,1704883840939,-500.0,0.00027397,2]
[311037824,1704883840950,-501.1581429,0.00027397,2]
[311037825,1704883840962,-503.16131874,0.00027397,2]
[311037826,1704883840974,-500.0,0.00027397,2]
[311037827,1704883840989,-500.0,0.00027397,2]
[311037828,1704883841000,-502.47780367,0.00027397,2]
[311037829,1704883841012,-500.0,0.00027397,2]
[311037830,1704883841023,-500.0,0.00027397,2]
[311037831,1704883841035,-500.0,0.00027397,2]
[311037832,1704883841046,-501.33305653,0.00027397,2]
[311037833,1704883841056,-970.18,0.00027397,2]
[311037834,1704883841067,-1067.02,0.00027397,2]
[311037835,1704883841078,-211.07566614,0.00027397,2]
[311037836,1704883841089,-502.97512192,0.00027397,2]
[311037837,1704883841100,-522.09370799,0.00027397,2]
[311037838,1704883841112,-500.0,0.00027397,2]
[311037839,1704883841123,-502.37533265,0.00027397,2]
[311037840,1704883841290,-500.0,0.00027397,2]
[311037841,1704883841300,-501.51045553,0.00027397,2]
[311037842,1704883841310,-294.44703932,0.00027397,2]
[311037843,1704883841319,-510.22720106,0.00027397,2]
[311037844,1704883841328,-500.0,0.00027397,2]
[311037845,1704883841338,-503.20325283,0.00027397,2]
[311037846,1704883841348,-500.0,0.00027397,2]
[311037847,1704883841357,-501.10416106,0.00027397,2]
[311037848,1704883841367,-500.0,0.00027397,2]
[311037849,1704883841376,-501.78053641,0.00027397,2]
[311037850,1704883841385,-576.34,0.00027397,2]
[311037851,1704883841395,-501.21999366,0.00027397,2]
[311037852,1704883841405,-566.1607247,0.00027397,2]
[311037853,1704883841414,-500.0,0.00027397,2]
[311037854,1704883841423,-1001.38259395,0.00027397,2]
[311037855,1704883841433,-517.01672452,0.00027397,2]
[311037856,1704883841442,-502.65996338,0.00027397,2]
[311037857,1704883841451,-503.00030109,0.00027397,2]
[311037858,1704883841461,-500.0,0.00027397,2]
[311037859,1704883841470,-502.72683891,0.00027397,2]
[311037860,1704883841481,-500.0,0.00027397,2]
[311037861,1704883841492,-500.0,0.00027397,2]
[311037862,1704883841502,-500.0,0.00027397,2]
[311037863,1704883841512,-500.0,0.00027397,2]
[311037864,1704883841522,-500.0,0.00027397,2]
[311037865,1704883841531,-500.6363967,0.00027397,2]
[311037866,1704883841541,-506.2982467,0.00027397,2]
[311037867,1704883841551,-500.66775379,0.00027397,2]
[311037868,1704883841561,-501.29303316,0.00027397,2]
[311037869,1704883841572,-500.0,0.00027397,2]
[311037870,1704883841583,-502.44655997,0.00027397,2]
[311037871,1704883841593,-500.0,0.00027397,2]
[311037872,1704883841603,-500.0,0.00027397,2]
[311037873,1704883841613,-501.83111774,0.00027397,2]
[311037874,1704883841623,-506.65770087,0.00027397,2]
[311037875,1704883841633,-562.16150847,0.00027397,2]
[311037876,1704883841643,-503.59279333,0.00027397,2]
[311037877,1704883841653,-524.12489659,0.00027397,2]
[311037878,1704883841663,-503.43008667,0.00027397,2]
[311037879,1704883841673,-500.0,0.00027397,2]
[311037880,1704883841682,-500.0,0.00027397,2]
[311037881,1704883841692,-500.0,0.00027397,2]
[311037882,1704883841701,-500.0,0.00027397,2]
[311037883,1704883841710,-565.54,0.00027397,2]
[311037884,1704883841720,-502.36378172,0.00027397,2]
[311037885,1704883841730,-275.97361976,0.00027397,2]
[311037886,1704883841741,-571.3599163,0.00027397,2]
[311037887,1704883841750,-500.0,0.00027397,2]
[311037888,1704883841760,-500.0,0.00027397,2]
[311037889,1704883841770,-1370.87,0.00027397,2]
[311037890,1704883841780,-503.17133488,0.00027397,2]
[311037891,1704883841788,-500.0,0.00027397,2]
[311037892,1704883841797,-500.0,0.00027397,2]
[311037893,1704883841807,-603.66307077,0.00027397,2]
[311037894,1704883841816,-500.0,0.00027397,2]
[311037895,1704883841826,-500.0,0.00027397,2]
[311037896,1704883841836,-500.0,0.00027397,2]
[311037897,1704883841846,-500.0,0.00027397,2]
[311037898,1704883841855,-500.0,0.00027397,2]
[311037899,1704883841866,-500.0,0.00027397,2]
[311037900,1704883841877,-500.0,0.00027397,2]
[311037901,1704883841888,-500.0,0.00027397,2]
[311037902,1704883841898,-500.0,0.00027397,2]
[311037903,1704883841907,-494.86882139,0.00027397,14]
[311037904,1704883841917,-688.47,0.00027397,2]
[311037905,1704883841927,-493.76665639,0.00027397,2]
[311037906,1704883841938,-500.0,0.00027397,2]
[311037907,1704883841948,-503.73609041,0.00027397,2]
[311037908,1704883841958,-503.3769544,0.00027397,2]
[311037909,1704883841969,-504.30430713,0.00027397,2]
[311037910,1704883841979,-500.0,0.00027397,2]
[311037911,1704883841989,-500.0,0.00027397,2]
[311037912,1704883841999,-500.0,0.00027397,2]
[311037913,1704883842010,-500.0,0.00027397,2]
[311037914,1704883842022,-500.0,0.00027397,2]
[311037915,1704883842032,-500.0,0.00027397,2]
[311037916,1704883842042,-507.50639236,0.00027397,2]
[311037917,1704883842052,-500.0,0.00027397,2]
[311037918,1704883842063,-502.72071019,0.00027397,2]
[311037919,1704883842074,-500.0,0.00027397,2]
[311037920,1704883842085,-454.51255567,0.00027397,2]
[311037921,1704883842096,-502.84193222,0.00027397,2]
[311037922,1704883842108,-500.0,0.00027397,2]
[311037923,1704883842118,-500.0,0.00027397,2]
[311037924,1704883842128,-20035.59365478,0.00027397,10]
[311037925,1704883842137,-500.0,0.00027397,2]
[311037926,1704883842147,-500.0,0.00027397,2]
[311037927,1704883842156,-503.3951306,0.00027397,2]
[311037928,1704883842165,-197.2146599,0.00027397,2]
[311037929,1704883842175,-500.0,0.00027397,2]
[311037930,1704883842185,-189.40971969,0.00027397,2]
[311037931,1704883842196,-155.0,0.00027397,2]
[311037932,1704883842206,-500.0,0.00027397,2]
[311037933,1704883842217,-500.0,0.00027397,2]
[311037934,1704883842228,-500.0,0.00027397,2]
[311037935,1704883842239,-500.0,0.00027397,2]
[311037936,1704883842249,-1599.57,0.00027397,2]
[311037937,1704883842260,-500.0,0.00027397,2]
[311037938,1704883842270,-500.0,0.00027397,2]
[311037939,1704883842281,-501.9526429,0.00027397,2]
[311037940,1704883842291,-500.0,0.00027397,2]
[311037941,1704883842301,-500.9561627,0.00027397,2]
[311037942,1704883842321,-500.0,0.00027397,2]
[311037943,1704883842333,-1000.0,0.00027397,4]
[311037944,1704883842344,-500.0,0.00027397,2]
[311037945,1704883842354,-500.0,0.00027397,2]
[311037946,1704883842363,-500.0,0.00027397,2]
[311037947,1704883842374,-500.0,0.00027397,2]
[311037948,1704883842385,-501.05321242,0.00027397,2]
[311037949,1704883842396,-502.48980308,0.00027397,2]
[311037950,1704883842408,-500.0,0.00027397,2]
[311037951,1704883842420,-500.0,0.00027397,2]
[311037952,1704883842431,-1625.93,0.00027397,2]
[311037953,1704883842442,-500.2761618,0.00027397,2]
[311037954,1704883842452,-501.60366891,0.00027397,2]
[311037955,1704883842463,-383.16327084,0.00027397,2]
[311037956,1704883842473,-309.91038177,0.00027397,5]
[311037957,1704883842484,-500.0,0.00027397,2]
[311037958,1704883842496,-1380.78,0.00027397,2]
[311037959,1704883842506,-500.0,0.00027397,2]
[311037960,1704883842515,-500.0,0.00027397,2]
[311037961,1704883842526,-833.41,0.00027397,2]
[311037962,1704883842535,-500.0,0.00027397,2]
[311037963,1704883842545,-534.92,0.00027397,2]
[311037964,1704883842556,-500.0,0.00027397,2]
[311037965,1704883842566,-513.26199714,0.00027397,2]
[311037966,1704883842576,-500.0,0.00027397,2]
[311037967,1704883842587,-500.0,0.00027397,2]
[311037968,1704883842598,-501.25921112,0.00027397,2]
[311037969,1704883842608,-500.0,0.00027397,2]
[311037970,1704883842618,-503.57074347,0.00027397,2]
[311037971,1704883842628,-504.41726563,0.00027397,2]
[311037972,1704883842638,-500.0,0.00027397,2]
[311037973,1704883842649,-1430.74,0.00027397,2]
[311037974,1704883842659,-1430.74,0.00027397,2]
[311037975,1704883842670,-1430.74,0.00027397,2]
[311037976,1704883842680,-1430.74,0.00027397,2]
[311037977,1704883842691,-1430.74,0.00027397,2]
[311037978,1704883842701,-1430.74,0.00027397,2]
[311037979,1704883842711,-1430.74,0.00027397,2]
[311037980,1704883842721,-1430.74,0.00027397,2]
[311037981,1704883842731,-1430.74,0.00027397,2]
[311037982,1704883842743,-1430.74,0.00027397,2]
[311037983,1704883842753,-1430.74,0.00027397,2]
[311037984,1704883842763,-1430.74,0.00027397,2]
[311037985,1704883842774,-1430.74,0.00027397,2]
[311037986,1704883842786,-502.40935148,0.00027397,2]
[311037987,1704883842797,-519.38443112,0.00027397,2]
[311037988,1704883842807,-500.0,0.00027397,2]
[311037989,1704883842816,-500.0,0.00027397,2]
[311037990,1704883842825,-602.33008702,0.00027397,2]
[311037991,1704883842835,-500.0,0.00027397,2]
[311037992,1704883842844,-500.0,0.00027397,2]
[311037993,1704883842853,-500.0,0.00027397,2]
[311037994,1704883842863,-500.0,0.00027397,2]
[311037995,1704883842872,-500.62912109,0.00027397,2]
[311037996,1704883842881,-500.62188728,0.00027397,2]
[311037997,1704883842891,-500.0,0.00027397,2]
[311037998,1704883842901,-790.67,0.00027397,2]
[311037999,1704883842911,-500.0,0.00027397,2]
[311038000,1704883842920,-634.62797387,0.00027397,2]
[311038001,1704883842930,-500.0,0.00027397,2]
[311038002,1704883842940,-500.0,0.00027397,2]
[311038003,1704883842949,-500.0,0.00027397,2]
[311038004,1704883842959,-501.51719285,0.00027397,2]
[311038005,1704883842968,-500.0,0.00027397,2]
[311038006,1704883842977,-3364.67,0.00027397,2]
[311038007,1704883842988,-502.30868847,0.00027397,2]
[311038008,1704883842997,-564.33525738,0.00027397,2]
[311038009,1704883843007,-501.60891421,0.00027397,2]
[311038010,1704883843017,-500.0,0.00027397,2]
[311038011,1704883843026,-501.81180643,0.00027397,2]
[311038012,1704883843036,-500.0,0.00027397,2]
[311038013,1704883843045,-503.57217146,0.00027397,2]
[311038014,1704883843055,-500.0,0.00027397,2]
[311038015,1704883843064,-249.06598029,0.00027397,2]
[311038016,1704883843073,-500.92873917,0.00027397,2]
[311038017,1704883843083,-501.3809648,0.00027397,2]
[311038019,1704883843093,-500.0,0.00027397,2]
[311038020,1704883843102,-500.0,0.00027397,2]
[311038022,1704883843112,-500.0,0.00027397,2]
[311038023,1704883843121,-500.0,0.00027397,2]
[311038025,1704883843130,-500.0,0.00027397,2]
[311038027,1704883843140,-500.0,0.00027397,2]
[311038028,1704883843149,-500.0,0.00027397,2]
[311038029,1704883843159,-500.0,0.00027397,2]
[311038030,1704883843168,-500.0,0.00027397,2]
[311038032,1704883843177,-500.0,0.00027397,2]
[311038033,1704883843187,-500.0,0.00027397,2]
[311038034,1704883843196,-500.0,0.00027397,2]
[311038035,1704883843206,-500.0,0.00027397,2]
[311038036,1704883843216,-534.12593271,0.00027397,2]
[311038037,1704883843225,-501.19540855,0.00027397,2]
[311038038,1704883843235,-500.0,0.00027397,2]
[311038039,1704883843245,-500.0,0.00027397,2]
[311038040,1704883843255,-500.0,0.00027397,2]
[311038041,1704883843265,-500.0,0.00027397,2]
[311038042,1704883843275,-500.30641269,0.00027397,2]
[311038043,1704883843284,-500.99470575,0.00027397,2]
[311038044,1704883843294,-500.0,0.00027397,2]
[311038045,1704883843304,-501.75915698,0.00027397,2]
[311038046,1704883843313,-500.0,0.00027397,2]
[311038047,1704883843323,-500.0,0.00027397,2]
[311038048,1704883843332,-500.0,0.00027397,2]
[311038049,1704883843342,-1410.43,0.00027397,2]
[311038050,1704883843351,-500.0,0.00027397,2]
[311038051,1704883843360,-500.0,0.00027397,2]
[311038052,1704883843370,-200.0,0.00027397,2]
[311038053,1704883843379,-500.0,0.00027397,2]
[311038054,1704883843389,-500.0,0.00027397,2]
[311038055,1704883843398,-500.0,0.00027397,2]
[311038056,1704883843408,-500.0,0.00027397,2]
[311038057,1704883843418,-1360.09,0.00027397,2]
[311038058,1704883843427,-500.0,0.00027397,2]
[311038059,1704883843436,-500.0,0.00027397,2]
[311038060,1704883843446,-500.0,0.00027397,2]
[311038061,1704883843456,-500.0,0.00027397,2]
[311038062,1704883843465,-500.70351278,0.00027397,2]
[311038063,1704883843475,-7927.97,0.00027397,2]
[311038064,1704883843485,-1097.19,0.00027397,2]
[311038065,1704883843496,-501.51100543,0.00027397,2]
[311038066,1704883843506,-500.0,0.00027397,2]
[311038067,1704883843516,-2993.40260382,0.00027397,2]
[311038068,1704883843669,-2692.68739618,0.00027397,2]
[311038070,1704883843679,-503.41150605,0.00027397,2]
[311038072,1704883843689,-500.0,0.00027397,2]
[311038074,1704883843699,-500.0,0.00027397,2]
[311038075,1704883843710,-500.0,0.00027397,2]
[311038077,1704883843720,-501.31877181,0.00027397,2]
[311038078,1704883843729,-500.0,0.00027397,2]
[311038079,1704883843740,-501.48944674,0.00027397,2]
[311038080,1704883843750,-1584.24,0.00027397,2]
[311038081,1704883843760,-7362.5,0.00027397,2]
[311038082,1704883843769,-1827.95,0.00027397,2]
[311038083,1704883843779,-500.0,0.00027397,2]
[311038084,1704883843789,-508.95269542,0.00027397,2]
[311038085,1704883843798,-356.23431548,0.00027397,2]
[311038086,1704883843808,-282.16174102,0.00027397,2]
[311038087,1704883843817,-1195.82,0.00027397,2]
[311038088,1704883843826,-500.0,0.00027397,2]
[311038089,1704883843836,-502.64056547,0.00027397,2]
[311038090,1704883843845,-501.18202632,0.00027397,2]
[311038091,1704883843854,-500.0,0.00027397,2]
[311038092,1704883843863,-500.0,0.00027397,2]
[311038093,1704883843872,-3385.97,0.00027397,2]
[311038094,1704883843881,-500.0,0.00027397,2]
[311038095,1704883843890,-500.0,0.00027397,2]
[311038096,1704883843899,-500.0,0.00027397,2]
[311038097,1704883843908,-501.62766761,0.00027397,2]
[311038098,1704883843918,-500.0,0.00027397,2]
[311038099,1704883843927,-500.0,0.00027397,2]
[311038100,1704883843936,-654.25,0.00027397,2]
[311038101,1704883843945,-500.0,0.00027397,2]
[311038102,1704883843954,-500.0,0.00027397,2]
[311038103,1704883843963,-500.0,0.00027397,2]
[311038104,1704883843973,-5399.79,0.00027397,2]
[311038105,1704883843982,-500.0,0.00027397,2]
[311038106,1704883843992,-1985.25,0.00027397,2]
[311038107,1704883844001,-636.28,0.00027397,2]
[311038108,1704883844011,-500.0,0.00027397,2]
[311038109,1704883844023,-500.0,0.00027397,2]
[311038110,1704883844032,-502.85008081,0.00027397,2]
[311038111,1704883844158,-500.0,0.00027397,2]
[311038112,1704883844167,-500.0,0.00027397,2]
[311038113,1704883844176,-500.0,0.00027397,2]
[311038114,1704883844186,-307.60449464,0.00027397,2]
[311038115,1704883844195,-42986.96,0.00027397,2]
[311038116,1704883844204,-504.43357066,0.00027397,2]
[311038117,1704883844213,-500.0,0.00027397,2]
[311038118,1704883844223,-500.0,0.00027397,2]
[311038119,1704883844232,-510.62,0.00027397,2]
[311038120,1704883844242,-16173.89,0.00027397,2]
[311038121,1704883844251,-1942.53,0.00027397,2]
[311038122,1704883844260,-500.0,0.00027397,2]
[311038123,1704883844269,-500.0,0.00027397,2]
[311038124,1704883844279,-500.0,0.00027397,2]
[311038125,1704883844287,-500.0,0.00027397,2]
[311038126,1704883844297,-500.0,0.00027397,2]
[311038127,1704883844305,-500.0,0.00027397,2]
[311038128,1704883844314,-500.0,0.00027397,2]
[311038129,1704883844324,-421.98401203,0.00027397,2]
[311038130,1704883844333,-500.0,0.00027397,2]
[311038131,1704883844342,-500.0,0.00027397,2]
[311038132,1704883844351,-500.0,0.00027397,2]
[311038133,1704883844360,-500.0,0.00027397,2]
[311038134,1704883844369,-500.0,0.00027397,2]
[311038135,1704883844378,-500.0,0.00027397,2]
[311038136,1704883844387,-500.0,0.00027397,2]
[311038137,1704883844397,-500.0,0.00027397,2]
[311038138,1704883844406,-500.0,0.00027397,2]
[311038139,1704883844415,-500.0,0.00027397,2]
[311038140,1704883844423,-500.0,0.00027397,2]
[311038141,1704883844433,-253.12364064,0.00027397,2]
[311038142,1704883844442,-1868.92,0.00027397,2]
[311038143,1704883844451,-2556.49,0.00027397,2]
[311038144,1704883844461,-500.0,0.00027397,2]
[311038145,1704883844470,-2673.91,0.00027397,2]
[311038146,1704883844480,-500.0,0.00027397,2]
[311038147,1704883844490,-500.0,0.00027397,2]
[311038148,1704883844499,-500.0,0.00027397,2]
[311038149,1704883844508,-500.0,0.00027397,2]
[311038150,1704883844517,-500.0,0.00027397,5]
[311038151,1704883844526,-822.4,0.00027397,2]
[311038152,1704883844536,-505.0037566,0.00027397,2]
[311038153,1704883844545,-500.0,0.00027397,2]
[311038154,1704883844554,-501.04927739,0.00027397,2]
[311038155,1704883844564,-500.0,0.00027397,2]
[311038156,1704883844573,-500.0,0.00027397,2]
[311038157,1704883844583,-500.0,0.00027397,2]
[311038158,1704883844593,-500.0,0.00027397,2]
[311038159,1704883844602,-500.0,0.00027397,2]
[311038160,1704883844611,-301.84281423,0.00027397,2]
[311038161,1704883844625,-198.98276152,0.00027397,2]
[311038162,1704883844634,-500.0,0.00027397,2]
[311038163,1704883844643,-500.0,0.00027397,2]
[311038164,1704883844653,-500.0,0.00027397,2]
[311038165,1704883844663,-500.0,0.00027397,2]
[311038166,1704883844672,-500.0,0.00027397,2]
[311038167,1704883844681,-500.0,0.00027397,2]
[311038168,1704883844691,-912.33,0.00027397,2]
[311038169,1704883844701,-513.21839484,0.00027397,2]
[311038170,1704883844711,-504.15046231,0.00027397,2]